Cogmind - Beta 11.1 @@@ ROGUE MODE // 2022.11.12 @ 17:20:06 Player: Beepinex Result: Destroyed by D-53 Grenadier with Mini Grenade Launcher Performance ------------- Evolutions (0) 0 Regions Visited (2) 400 Robots Destroyed (19) 95 Value Destroyed (354) 354 Prototype IDs (4) 80 Alien Tech Used (0) 0 Bonus (-149) -149 TOTAL SCORE: 780 Bonus ------- Follower Combat Kills 81 Friendly Fire -230 Cogmind --------- Core Integrity 0/250 Matter 369/500 Energy 58/100 System Corruption 4% Temperature Cool (0) Movement Treading (240) Ox1 Location -10/Mines Parts ------- > --- POWER (1) -------- (None) > --- PROPULSION (2) --- Light Treads Compact Wheel > --- UTILITY (2) ------ Large Storage Unit High-capacity Matter Pod > --- WEAPON (2) ------- Light Assault Rifle > --- INVENTORY (15) --- Compact Wheel Improved Heat Sink Improved Heat Sink Medium Battery (150) Sensor Array Signal Interpreter Terrain Scan Processor Grenade Launcher Mining Laser Peak State ------------ > --- POWER ------------ Light Nuclear Core > --- PROPULSION ------- Light Treads Compact Wheel > --- UTILITY ---------- Large Storage Unit Seismic Detector > --- WEAPON ----------- Particle Gun Light Assault Rifle > --- INVENTORY -------- Ion Engine Light Treads Compact Wheel Improved Heat Sink Medium Matter Pod Signal Interpreter Light Assault Rifle Grenade Launcher Mining Laser [Rating: 11] Favorites ----------- Power Light Nuclear Core Engine Ion Engine Power Core Light Nuclear Core Propulsion Compact Wheel Treads Light Treads Wheel Compact Wheel Utility Seismic Detector Device Seismic Detector Storage Large Storage Unit Weapon Particle Gun Energy Gun Particle Gun Ballistic Gun Light Assault Rifle Launcher Grenade Launcher Special Weapon Mining Laser Build | -11 -10 -10 ------- Run | Scr Mat Min Slots Evolved . | . . . Power . | . . . Propulsion . | . . . Utility . | . . . Weapon . | . . . Parts Attached 27 | 7 10 10 Power 3 | 1 1 1 Engine 2 | 1 . 1 Core 1 | . 1 . Reactor . | . . . Propulsion 6 | 2 2 2 Treads 4 | 1 1 2 Leg . | . . . Wheel 2 | 1 1 . Hover . | . . . Flight . | . . . Utility 5 | 2 2 1 Device 2 | 1 1 . Storage 3 | 1 1 1 Processor . | . . . Hackware . | . . . Protection . | . . . Artifact . | . . . Weapon 13 | 2 5 6 Energy Gun 3 | 1 1 1 Energy Cannon . | . . . Ballistic Gun 6 | 1 3 2 Ballistic Cannon . | . . . Launcher 3 | . 1 2 Special Weapon 1 | . . 1 Impact Weapon . | . . . Slashing Weapon . | . . . Piercing Weapon . | . . . Special Melee Weapon . | . . . Unidentified Prototypes . | . . . Parts Lost 8 | . 1 7 Power 3 | . 1 2 Propulsion 2 | . . 2 Utility 1 | . . 1 Weapon 2 | . . 2 Highest Loss Streak 6 | . 1 6 To Critical Strikes . | . . . Average Slot Usage (%) 99 | . 99 97 Engine 4 | . 5 2 Core 8 | . 8 10 Treads 14 | . 14 14 Wheel 14 | . 14 14 Device 13 | . 13 13 Storage 14 | . 14 14 Energy Gun 13 | . 14 12 Ballistic Gun 13 | . 13 13 Naked Turns . | . . . Heaviest Build 32 | 14 31 32 Greatest Support 20 | 20 20 16 Greatest Overweight (x) 1 | . 1 1 Average Overweight (x) . | . . 1 Largest Inventory Capacity 15 | 8 15 15 Average Capacity 14 | 7 14 15 Most Carried 14 | 5 14 13 Average Carried 9 | 2 8 12 Final Capacity 15 | 8 15 15 Final Carried 13 | 4 13 9 Class Distribution -------------------- 100% | Mutant Dominant Class ---------------- Mutant | -10/Materials Mutant | -10/Mines Resources | -11 -10 -10 ----------- Run | Scr Mat Min Matter Collected 723 | 261 412 50 Remotely . | . . . Salvage Created 590 | 99 359 132 Parts 43 | 7 31 5 Haulers Intercepted 1 | . 1 . Recyclers Shooed 1 | . . 1 Parts Field Recycled . | . . . Retrieved Matter . | . . . Parts Self-Destructed . | . . . Prevented . | . . . Kills | -11 -10 -10 ------- Run | Scr Mat Min Combat Hostiles Destroyed 23 | . 8 15 Guns 9 | . 5 4 AOE 14 | . 3 11 Classes Destroyed 10 | 2 6 2 Worker 3 | . 3 . Builder 1 | . 1 . Tunneler 1 | 1 . . Hauler 1 | . 1 . Recycler 1 | 1 . . Watcher 2 | . 2 . Swarmer 3 | . 3 . Grunt 6 | . 5 1 Demolisher 1 | . . 1 Assembled 14 | . . 14 Best Kill Streak 12 | 2 7 12 Combat Bots Only 12 | . 3 12 Max Kills in Single Turn 3 | 1 3 3 Gunslinging . | . . . Exploded 3 | . 2 3 Melee . | . . . Uniques/NPCs Destroyed . | . . . Combat | -11 -10 -10 -------- Run | Scr Mat Min Damage Taken 1447 | . 487 960 Core 250 | . 74 176 Absorbed by Shields . | . . . Regen/Repaired (Parts) 148 | . 148 . Core Remaining (%) 100 | 100 . . Volleys Fired 90 | 4 58 28 Largest 2 | 1 2 2 Hottest 85 | 20 85 85 Shots Fired 131 | 4 89 38 Gun 120 | 4 85 31 Cannon . | . . . Launcher 11 | . 4 7 Special . | . . . Kinetic 78 | 4 54 20 Thermal 32 | . 21 11 Explosive 11 | . 4 7 Electromagnetic 10 | . 10 . Robot Hit Streak 9 | 4 9 4 Robot Miss Streak 5 | . 5 4 Penetration Max . | . . . Secondary Targets 1 | . . 1 Max Gunslinging Chain 1 | . . 1 Shots Hit Robots 71 | 4 48 19 Core Hits 74 | 5 30 39 Critical Kills . | . . . Critical Parts Destroyed . | . . . Critical Strikes . | . . . Melee Attacks . | . . . Impact . | . . . Slashing . | . . . Piercing . | . . . Sneak Attacks . | . . . Combat Hostiles . | . . . Follow-up Attacks . | . . . Damage Inflicted 1930 | 40 874 1016 Guns 730 | 30 498 202 Cannons . | . . . Explosions 1167 | . 353 814 Melee . | . . . Ramming 33 | 10 23 . Kinetic 383 | 30 231 122 Thermal 243 | . 163 80 Explosive 1167 | . 353 814 Electromagnetic 104 | . 104 . Impact . | . . . Slashing . | . . . Piercing . | . . . Highest Corruption 4 | . 4 4 Average Corruption 3 | . 3 4 Corruption Purged . | . . . Corruption Blocked . | . . . Effects 7 | . 1 6 Message Errors 2 | . . 2 Energy Discharges 1 | . . 1 Data Loss (minor) 2 | . 1 1 Weapon Failures 2 | . . 2 Overload Shots . | . . . Overflow Damage 55 | . 53 2 Projectiles . | . . . Explosions 55 | . 53 2 Melee . | . . . Knockbacks . | . . . Impact . | . . . Kinetic . | . . . Secondary . | . . . Self-Inflicted Damage 125 | . 45 80 Shots 7 | . 2 5 Rammed 9 | 5 4 . Targets Rammed 10 | 5 5 . Kicked . | . . . Crushed 1 | . 1 . Highest Temperature 267 | . 267 200 Average Temperature 83 | . 87 69 Received Heat Transfer 355 | . 249 106 Effects 1 | . 1 . Interference 1 | . 1 . Siege Activations . | . . . Robots Corrupted . | . . . Combat Hostiles . | . . . Parts Fried . | . . . Impact Corruptions . | . . . Robots Melted . | . . . Combat Hostiles . | . . . Parts Melted . | . . . Heat Transferred 555 | . 370 185 Parts Sabotaged . | . . . Parts Stolen . | . . . Parts Stripped . | . . . Power Chain Reactions . | . . . Missiles Intercepted . | . . . Alert | -11 -10 -10 ------- Run | Scr Mat Min Peak Influence 284 | 10 198 284 Initial 76 | . 6 76 Average 113 | 3 94 210 Maximum Alert Level 1 | . . 1 Low Security (%) 89 | 100 100 50 Level 1 10 | . . 49 Level 2 . | . . . Level 3 . | . . . Level 4 . | . . . Level 5 . | . . . High Security . | . . . Max Security . | . . . Squads Dispatched 1 | . 1 . Investigation . | . . . Extermination . | . . . Reinforcement 1 | . 1 . Assault . | . . . Garrison . | . . . Intercept . | . . . Searches Triggered . | . . . Construction Impeded . | . . . Haulers Reinforced . | . . . Active Scanning Responses . | . . . Cargo Convoy Interrupts . | . . . Stealth | -11 -10 -10 --------- Run | Scr Mat Min Distress Signals 2 | . 2 . Communications Jammed . | . . . Distress Signals . | . . . Times Spotted 42 | . 16 26 Peak Tracking Total 20 | . 5 20 Tactical Retreats . | . . . Traps | -11 -10 -10 ------- Run | Scr Mat Min Traps Triggered 3 | . 3 . Indirectly . | . . . Trap Hack Attempts . | . . . Triggered . | . . . Disarmed 6 | . 6 . Reprogrammed . | . . . Reused . | . . . Traps Extracted . | . . . Installed . | . . . Triggered . | . . . Machines | -11 -10 -10 ---------- Run | Scr Mat Min Machines Disabled 2 | . 2 . Max in Single Turn 1 | . 1 . Machines Sabotaged . | . . . Garrisons Compromised . | . . . Overloaded Fab Kills . | . . . Hacking | -11 -10 -10 --------- Run | Scr Mat Min Machines Accessed 8 | . 8 . Terminals 6 | . 6 . Fabricators . | . . . Repair Stations 1 | . 1 . Recycling Units 1 | . 1 . Scanalyzers . | . . . Garrison Access . | . . . Total Hacks 25 | . 25 . Successful 16 | . 16 . Failed 9 | . 9 . Catastrophic 3 | . 3 . Database Lockouts . | . . . Manual 11 | . 11 . Terminals 17 | . 17 . Fabricators . | . . . Repair Stations 4 | . 4 . Recycling Units 4 | . 4 . Scanalyzers . | . . . Garrison Access . | . . . Terminal Hacks 8 | . 8 . Prototype ID Bank 2 | . 2 . Terminal Index 1 | . 1 . Locate Traps 1 | . 1 . Disarm Traps 1 | . 1 . Hauler Manifests 2 | . 2 . Registered Components 1 | . 1 . Fabricator Hacks . | . . . Repair Station Hacks 4 | . 4 . Scan Component 2 | . 2 . Repair 2 | . 2 . Recycling Unit Hacks . | . . . Scanalyzer . | . . . Garrison Access Hacks . | . . . Unauthorized Hacks 4 | . 4 . Terminals 1 | . 1 . Botnet 1 | . 1 . Fabricators . | . . . Repair Stations . | . . . Recycling Units 3 | . 3 . Reject 1 | . 1 . Recyclers 1 | . 1 . Mask 1 | . 1 . Scanalyzers . | . . . Garrison Access . | . . . Data Cores Recovered . | . . . Used . | . . . Hacking Detections 8 | . 8 . Full Trace Events 2 | . 2 . Feedback Events . | . . . Feedback Blocked . | . . . Robot Schematics Acquired . | . . . Robots Built . | . . . Authchips . | . . . Time . | . . . Total Robot Build Rating . | . . . Part Schematics Acquired . | . . . Parts Built . | . . . Authchips . | . . . Time . | . . . Total Part Build Rating . | . . . Parts Repaired 2 | . 2 . Time 52 | . 52 . Parts Recycled . | . . . Recycled Matter . | . . . Retrieved Matter . | . . . Retrieved Components . | . . . Parts Scanalyzed . | . . . Part Schematics Acquired . | . . . Parts Damaged . | . . . Bothacking | -11 -10 -10 ------------ Run | Scr Mat Min Used RIF Installer . | . . . Robots Hacked . | . . . Non-combat . | . . . Combat . | . . . Robot Hacks Applied . | . . . Relay Couplers Released . | . . . Fabnet Peak Effective % . | . . . Robots Rewired . | . . . Allies Hacked . | . . . Hacks Repelled . | . . . Allies | -11 -10 -10 -------- Run | Scr Mat Min Total Allies 3 | . . 3 Largest Group 3 | . . 3 Highest-Rated Group 40 | . . 40 Highest-Rated Ally 16 | . . 16 Total Orders . | . . . Ally Attacks 33 | . . 33 Total Damage 345 | . . 345 Kills 6 | . . 6 Allies Corrupted . | . . . Allies Melted . | . . . Intel | -11 -10 -10 ------- Run | Scr Mat Min Robot Analysis Total . | . . . Derelict Logs Recovered 1 | . . 1 Drone Launches . | . . . Drone Recoveries . | . . . Exploration | -11 -10 -10 ------------- Run | Scr Mat Min Turns Passed 1504 | 113 1058 333 Spaces Moved 826 | 58 581 187 Core 3 | 3 . . Treads 104 | 23 81 . Legs . | . . . Wheels 719 | 32 500 187 Hover . | . . . Flight . | . . . Fastest Speed 50 | 50 100 115 Average Speed 127 | 121 131 115 Slowest Speed 240 | 160 240 115 Overloaded Moves . | . . . Propulsion Burnouts . | . . . Robots Hopped . | . . . Cave-ins Triggered . | . . . Exploration Rate (%) 42 | 5 84 37 Regions Visited 2 Branch Regions 1 Pre-discovered Areas . | . . . Known Exits Taken . | . . . Unknown Exits Taken 2 | 1 1 . Scrap Searched . | . . . Spaces Dug . | . . . Terrain Destroyed 58 | . 11 47 Melee . | . . . Projectile . | . . . AOE 58 | . 11 47 Terrain Rammed . | . . . Walls Destroyed . | . . . Machines Disabled . | . . . Actions | -11 -10 -10 --------- Run | Scr Mat Min Total 1148 | 95 788 265 Wait 163 | 11 113 39 Move 825 | 58 580 187 Hop . | . . . Pick Up 29 | 11 17 1 Fast Attach . | . . . Attach 14 | 7 2 5 Detach . | . . . Swap 13 | . 8 5 Drop 5 | . 5 . Fire 90 | 4 58 28 Melee . | . . . Ram . | . . . Kick . | . . . Crush 9 | 4 5 . Escape Stasis . | . . . Rewire . | . . . Trap . | . . . Miscellaneous . | . . . Route ------- -11/Scrapyard -10/Materials (discovered 3 exits: [*Mat x2] / [*Min]) -10/Mines History --------- Turn | Location | Event 32 | -11/Scrapyard | Discovered new exit (range 14) 114 | -11/Scrapyard | Entered Materials 316 | -10/Materials | Build established: Mutant 339 | -10/Materials | Discovered new exit (range 15) 743 | -10/Materials | Repaired Lgt. Treads 772 | -10/Materials | Repaired Com. Wheel 1104 | -10/Materials | Discovered new exit (range 16) 1165 | -10/Materials | Discovered new exit (range 6) 1172 | -10/Materials | Entered Mines 1175 | -10/Mines | Assisted by bots powering up and referring to "LRC-V3" 1388 | -10/Mines | Learned Materials terminal intel 1391 | -10/Mines | Assembled infested the area 1396 | -10/Mines | Assisted by a Guerilla fighting off Assembled 1430 | -10/Mines | Destroyed 12 combat bots 1438 | -10/Mines | Core integrity fell below 50% 1500 | -10/Mines | Core integrity fell below 20% 1505 | -10/Mines | Destroyed by D-53 Grenadier with Mini Grenade Launcher Last Messages --------------- 01437_ System corrupted: Energy discharge (-37). 01439_ as-63098 destroyed. 01448_ as-28493 destroyed. 01451_ Acquired 3 matter. 01453_ Acquired 17 matter. 01459_ Acquired Imp. Heat Sink. 01479_ System corrupted: Particle Gun failed to cycle. 01479_ Ion Engine destroyed. 01481_ Lgt. Treads destroyed. 01482_ The unstable cave ceiling collapses. 01483_ D-53 Grenadier destroyed. 01483_ Switching to secondary target: D-53 Grenadier. 01485_ The unstable cave ceiling collapses. 01487_ Particle Gun destroyed. 01491_ The unstable cave ceiling collapses. 01491_ Assault Rifle destroyed. 01495_ The unstable cave ceiling collapses. 01499_ Seismic Detector destroyed. 01503_ The unstable cave ceiling collapses. 01503_ Lgt. Treads destroyed. Map ----- +----------------------------------------------------+ | ???????????????????????????????? ??? | | ???????????????????????????????? #? | | ???????????????????????????????? ? | | ???#???????????????????????????? #? | | ? #????????????????????????????# # ? | | #?????????????????????????????# % ## | | #?????????????????????????????? ! # | | ##????????????????????????????## * # | | #????????????????????????????# * # | | #????????????????????????????# ? | | ##???####??????????????????#### #? | | ##???## ##?????????????????? #? | | ?????# #???????????????????# % #? | | ????## #?????#####?????????# % ## | | ##### #??????# ??????????# # | | #??????# ??????????## # | | ##### #??????# #??????????### #?? | | ###### ##??????# #????????????## ###?? | | ## #????#### #?????????????# #???? | | ## #???##= # #?????????????# #???? | | ## #####*= #??#########??# #???? | | """ ## !% r%[= #### #### #???? | | """ #########% ## !! #???? | | """ #???????## d%] #???? | | #????????## #######???? | | ######?????????# @ #?????????? | | ???????????????## #?????????? | | ????????????????#### #?????????? | | ???????????????????### ##?????????? | | ?????????????????????## ##??????????? | | ??????????????????????#######???????????? | | | | | | | | | | | | | | | | | | | | | | | | | | | | | | | | | | | | | | | +----------------------------------------------------+ Best States ------------- Heat Dissipation 25 Energy Generation 14 Energy Capacity 250 Matter Stores 300 Matter Capacity 300 Sight Range 16 Terrain Scan Density 10 Evasion (%) 40 Recoil Reduction 1 Item Schematics ----------------- None Robot Schematics ------------------ None Fabricated ------------ Nothing Alien Tech Used ----------------- None Achievements -------------- None Challenges ------------ None Game ------ Seed AssaultMiniTriangulator Manual? 0 Play Time 00:20:40 Cumulative 40.7 hours Start 2022.11.12 @ 16:55:05 End 2022.11.12 @ 17:20:06 Sessions 1 Manual Loads 0 Difficulty Rogue Special Mode None Game No. 69 Rogue 69 Adventurer 0 Explorer 0 Win Type - Total 0 Types 0/0/0/0/0/0/0/0/0 Lore% 19 Gallery% 24 Achievement% 27 Wizard Run 0 Options --------- ASCII 0 Keyboard 0 Movement Mouse Keybinds 0 Fullscreen 2 Font 18/TerminusBold Map View 76x50 Tactical HUD 1 Map Filters NONE Filters NONE Steam 1 RUN: 920938b3-8197-49b1-9990-b20fb58ac76e